bitfinex/quotes_ETHUSD_20260208
["timestamp","ask_amount","ask_price","bid_price","bid_amount"]
[1770557373090,0.97036009,2135.4,2134.7,1.17219642]
[1770557373280,3.272,2135.5,2134.8,1.17105369]
[1770557374379,2.14110093,2135.4,2134.7,0.0011]
[1770557374579,2.14110093,2135.4,2134.7,1.17221534]
[1770557374792,1.17074084,2135.4,2134.7,1.17221534]
[1770557376429,1.17074084,2135.4,2134.7,0.0011]
[1770557377711,0.001,2135.2,2134.7,0.0011]
[1770557378384,1.1718505,2135.2,2134.7,0.0011]
[1770557379408,0.001,2135.2,2134.7,0.0011]
[1770557383387,0.001,2135.2,2134.7,0.98979455]
[1770557384202,0.001,2135.2,2134.8,2.15976443]
[1770557384407,0.001,2135.2,2134.9,0.98869455]
[1770557384816,7.65054491,2135.8,2134.9,0.98869455]
[1770557385118,0.001,2135.7,2134.9,0.98869455]
[1770557387217,0.001,2135.7,2135.1,0.92406152]
[1770557388112,0.001,2135.6,2135.1,0.92406152]
[1770557389019,0.001,2135.6,2135.0,1.17096018]
[1770557390311,0.5,2135.4,2135.0,1.17096018]
[1770557390700,0.501,2135.4,2135.0,1.17096018]
[1770557393798,0.501,2135.4,2134.9,1.17208833]
[1770557394203,0.501,2135.4,2134.7,0.92516152]
[1770557394204,0.91716893,2135.2,2134.7,0.0011]
[1770557394521,3.273,2135.1,2134.7,0.0011]
[1770557394720,4.19016893,2135.1,2134.7,0.0011]
[1770557395200,0.91716893,2135.0,2134.7,0.0011]
[1770557395406,3.273,2135.1,2134.7,0.0011]
[1770557395720,1.17096018,2135.0,2134.7,0.0011]
[1770557399410,7.95663032,2135.1,2134.7,0.0011]
[1770557399411,4.4439471,2135.1,2134.7,0.0011]
[1770557399929,4.44390751,2135.1,2134.7,0.0011]
[1770557401505,5.36107644,2135.1,2134.7,0.0011]
[1770557401827,4.44390733,2135.1,2134.7,0.0011]
[1770557402523,5.36107626,2135.1,2134.7,0.0011]
[1770557403001,5.36107626,2135.1,2134.9,0.0011]
[1770557404030,3.273,2135.1,2134.9,0.0011]
[1770557404633,2.08742588,2136.3,2135.0,0.9686499]
[1770557404838,2.08742588,2136.3,2135.0,0.04458838]
[1770557404839,0.91716893,2136.1,2135.0,0.04458838]
[1770557405021,3.273,2136.0,2135.0,0.9686499]
[1770557406115,0.502,2135.9,2135.1,2.09496686]
[1770557406311,0.502,2135.9,2135.2,0.92406152]
[1770557407416,0.502,2135.9,2135.1,1.17090534]
[1770557408325,0.502,2135.9,2135.2,0.92406152]
[1770557409708,1.6724692,2135.9,2135.2,0.92406152]
[1770557410030,1.6724692,2135.9,2135.1,1.17090534]
[1770557410230,1.1704692,2135.9,2135.1,1.17090534]
[1770557410940,1.1704692,2135.9,2135.1,2.09496686]
[1770557411236,4.44345014,2136.0,2135.1,2.09496686]
[1770557411407,0.502,2135.9,2135.1,2.09496686]
[1770557412019,0.502,2135.9,2135.2,0.92406152]
[1770557412436,0.502,2135.9,2135.3,2.09485719]
[1770557412813,1.67248187,2135.9,2135.3,1.17079567]
[1770557413005,0.502,2135.9,2135.3,1.17079567]
[1770557413416,1.6724956,2135.9,2135.2,1.17080722]
[1770557413620,0.502,2135.9,2135.2,1.17080722]
[1770557414214,0.502,2135.9,2135.3,0.92406152]
[1770557414536,0.502,2135.9,2135.4,2.09480236]
[1770557415738,0.502,2135.9,2135.5,0.90418939]
[1770557416221,0.001,2135.8,2135.5,0.90418939]
[1770557416437,0.001,2135.8,2135.6,1.1706312]
[1770557417138,0.001,2135.8,2135.5,2.07484472]
[1770557418840,1.17013807,2136.6,2135.7,0.90418939]
[1770557419642,0.502,2136.5,2135.7,0.90418939]
[1770557421028,0.502,2136.5,2135.8,2.07471097]
[1770557422427,1.6721395,2136.5,2135.8,2.07471097]
[1770557424240,1.6721395,2136.5,2135.8,1.17052158]
[1770557426227,1.6721395,2136.5,2135.7,4.68211124]
[1770557427048,0.9959806,2136.4,2135.7,1.17057639]
[1770557428442,0.502,2136.3,2135.7,1.17057639]
[1770557428645,2.66822974,2136.3,2135.6,1.1706297]
[1770557428954,0.502,2136.2,2135.6,1.1706297]
[1770557429119,0.502,2136.2,2135.6,1.1717297]
[1770557429319,2.16722974,2136.3,2135.6,1.1717297]
[1770557429320,0.502,2136.1,2135.7,0.90418939]
[1770557429641,0.502,2136.1,2135.6,1.1717297]
[1770557429819,0.502,2136.1,2135.6,2.07591909]
[1770557430220,0.502,2136.1,2135.6,1.1717297]
[1770557430747,0.502,2136.1,2135.6,0.90528939]
[1770557431850,0.001,2136.3,2135.6,0.90528939]
[1770557432054,0.502,2136.2,2135.6,0.90528939]
[1770557432457,0.502,2136.2,2135.6,0.0011]
[1770557432632,1.67235991,2136.1,2135.2,0.90528939]
[1770557433346,1.67235991,2136.1,2135.2,0.94987777]
[1770557433719,0.9959806,2136.0,2135.2,0.0011]
[1770557434124,0.9959806,2136.0,2135.0,0.0011]
[1770557434340,0.9959806,2135.8,2135.0,0.0011]
[1770557434546,0.9959806,2135.6,2135.0,0.0011]
[1770557435026,4.2679806,2135.6,2135.0,0.0011]
[1770557435349,1.4968806,2135.5,2135.0,0.0011]
[1770557436131,0.9959806,2135.4,2135.0,0.0011]
[1770557436531,0.5009,2135.3,2135.0,0.0011]
[1770557436935,1.17082971,2135.3,2135.0,0.0011]
[1770557437137,0.9959806,2135.2,2134.7,0.0011]
[1770557437349,0.9959806,2135.1,2134.5,0.0011]
[1770557437549,0.9959806,2134.9,2133.9,1.17152511]
[1770557438043,0.9959806,2134.8,2133.7,1.1716728]
[1770557438356,0.9959806,2134.7,2133.7,1.1716728]
[1770557438656,0.9959806,2134.6,2133.6,0.0011]
[1770557438827,0.9959806,2134.5,2133.6,0.0011]
[1770557439024,4.44328935,2134.4,2133.6,0.0011]
[1770557439230,5.93466995,2134.4,2133.6,0.0011]
[1770557439545,0.9959806,2134.3,2133.6,0.0011]
[1770557439934,0.4954,2134.2,2133.6,0.0011]
[1770557440152,1.4913806,2134.2,2133.6,0.0011]
[1770557440359,0.4954,2134.1,2133.6,0.0011]
[1770557440951,1.1715089,2134.0,2133.6,0.0011]
[1770557441157,1.6669089,2134.0,2133.6,0.0011]
[1770557442257,0.9959806,2133.9,2133.4,0.0011]
[1770557442466,4.2689806,2133.8,2133.4,0.0011]
[1770557443028,1.17167361,2133.7,2133.4,0.0011]
[1770557443443,0.4954,2133.6,2133.4,0.0011]
[1770557444059,0.9959806,2133.6,2133.2,0.0011]
[1770557444263,1.4891806,2133.5,2132.9,0.0011]
[1770557444468,0.4932,2133.5,2132.9,0.0011]
[1770557445463,3.273,2133.9,2132.9,0.99472309]
[1770557445628,0.4932,2133.8,2132.9,0.99472309]
[1770557446136,0.4932,2133.7,2132.9,0.99472309]
[1770557446738,0.4932,2133.6,2132.9,0.99472309]
[1770557447057,0.4932,2133.8,2132.9,0.99472309]
[1770557447272,1.66483394,2133.8,2133.0,1.17205813]
[1770557447452,0.4932,2133.7,2133.0,1.17205813]
[1770557447833,0.4932,2133.6,2133.0,2.16568122]
[1770557448048,4.6856105,2134.2,2133.0,2.16568122]
[1770557448049,2.08067175,2135.0,2133.9,0.99362309]
[1770557448434,2.08067175,2135.0,2134.2,0.04458838]
[1770557448635,2.08067175,2135.0,2133.9,0.99362309]
[1770557448835,0.90971157,2134.9,2133.8,0.04458838]
[1770557449364,1.17106988,2134.8,2133.7,2.1652967]
[1770557450279,1.17106988,2134.8,2133.8,1.03821147]
[1770557450635,0.90971157,2134.7,2133.8,0.04458838]
[1770557450945,4.18371157,2134.6,2133.6,1.17168701]
[1770557451351,1.17123448,2134.5,2133.6,1.17168701]
[1770557451750,1.17123448,2134.5,2133.6,2.1653101]
[1770557452947,0.90971157,2134.4,2133.4,1.17181061]
[1770557453365,0.90971157,2134.4,2133.2,0.04458838]
[1770557453366,2.0810558,2134.3,2133.2,4.68761211]
[1770557453547,0.90971157,2134.2,2133.2,4.68761211]
[1770557453748,0.90971157,2134.2,2134.0,0.0011]
[1770557453952,0.90971157,2134.2,2133.2,4.68761211]
[1770557453953,0.90971157,2134.2,2133.8,0.0011]
[1770557454669,0.90971157,2134.2,2133.2,1.17194824]
[1770557454866,0.90971157,2134.2,2133.1,1.17196975]
[1770557455245,1.171454,2134.1,2132.9,1.17317568]
[1770557455446,0.90971157,2133.9,2132.9,0.0011]
[1770557457447,0.90971157,2133.7,2132.9,0.0011]
[1770557459550,1.17172853,2133.6,2132.9,0.0011]
[1770557460556,1.1716187,2133.8,2132.9,0.99472309]
[1770557461671,2.08133027,2133.8,2132.9,0.0011]
[1770557462542,0.90971157,2133.7,2132.9,0.0011]
[1770557463282,4.68647483,2134.1,2132.9,0.0011]
[1770557463283,0.001,2135.3,2133.9,0.99362309]
[1770557463453,2.08056207,2135.2,2133.9,0.99362309]
[1770557463658,0.90971157,2134.9,2133.7,1.17167361]
[1770557464476,1.17096018,2135.0,2133.6,5.68031756]
[1770557464477,0.90971157,2134.7,2133.6,2.16531544]
[1770557464846,2.08067175,2135.0,2133.6,2.16531544]
[1770557465186,2.08067175,2135.0,2133.7,0.99362309]
[1770557465546,1.17106988,2134.8,2133.8,1.1716187]
[1770557465959,0.001,2134.6,2133.8,1.1716187]
[1770557466162,0.90971157,2134.4,2133.3,1.17186611]
[1770557466503,0.90971157,2134.4,2133.3,1.17188519]
[1770557467277,0.90971157,2134.4,2133.2,1.17190669]
[1770557467873,1.17134423,2134.3,2133.1,0.99472309]
[1770557469976,0.90971157,2134.4,2133.2,1.17194824]
[1770557473461,0.90971157,2134.2,2133.1,1.17306612]
[1770557473660,0.90971157,2134.2,2133.1,1.17309841]
[1770557474024,0.90971157,2134.2,2133.1,0.0011]
[1770557474291,0.94914703,2133.8,2132.9,1.17321126]
[1770557474696,4.22414703,2133.8,2132.9,0.0011]
[1770557475191,3.275,2133.8,2132.9,1.1731742]
[1770557475370,1.17167361,2133.7,2132.9,0.0011]
[1770557475573,0.99666181,2133.6,2132.9,0.0011]
[1770557477580,2.16844526,2133.5,2133.1,0.0011]
[1770557478490,0.99666181,2133.4,2132.5,0.0011]
[1770557479564,1.17189331,2133.3,2132.5,0.0011]
[1770557480171,2.16855512,2133.3,2132.5,0.0011]
[1770557480561,0.99666181,2133.2,2132.5,0.0011]
[1770557480761,4.27266181,2133.1,2132.5,0.0011]
[1770557480965,0.99666181,2132.1,2130.2,0.92664405]
[1770557481264,0.99666181,2132.1,2130.9,0.92664405]
[1770557481486,0.38055868,2132.9,2130.9,0.92664405]
[1770557481487,1.17266288,2131.9,2130.9,0.92664405]
[1770557481689,3.276,2131.8,2130.9,0.92664405]
[1770557481863,3.276,2131.7,2130.9,0.92664405]
[1770557482276,4.87167343,2131.7,2130.9,0.92664405]
[1770557482469,1.34061531,2131.6,2130.9,0.92664405]
[1770557482670,1.34061531,2131.6,2130.7,0.04458838]
[1770557482990,1.34061531,2131.6,2130.7,0.97123243]
[1770557483192,1.34061531,2131.6,2130.7,0.92664405]
[1770557483373,1.34061531,2131.6,2130.7,0.97123243]
[1770557483568,1.34061531,2131.6,2130.8,2.0999123]
[1770557484182,2.51344455,2131.6,2130.8,0.92664405]
[1770557484377,0.62349927,2131.5,2130.4,1.1734563]
[1770557484668,0.62349927,2131.5,2130.4,2.10013186]
[1770557484868,0.62349927,2131.5,2130.4,2.10013036]
[1770557485069,3.276,2131.4,2130.4,2.10013036]
[1770557485394,0.34469034,2131.3,2130.7,2.09995977]
[1770557485599,0.34469034,2131.3,2130.8,2.09990841]
[1770557485807,0.34469034,2131.3,2130.9,0.97123243]
[1770557485984,0.32704165,2131.2,2130.9,0.92664405]
[1770557486798,0.32704165,2131.2,2130.8,2.09988201]
[1770557487474,0.32704165,2131.2,2130.9,0.92664405]
[1770557487898,0.32704165,2131.2,2131.0,1.17315814]
[1770557488681,0.99666181,2133.6,2131.1,0.92664405]
[1770557488873,0.38081924,2132.2,2131.4,0.04458838]
[1770557489100,0.38081924,2132.2,2131.3,0.92664405]
[1770557490004,0.38081924,2132.2,2131.5,0.92664405]
[1770557490200,0.38081924,2132.2,2131.6,0.04458838]
[1770557490417,0.22293039,2132.2,2131.7,0.92664405]
[1770557490710,0.38669069,2133.0,2132.0,0.92664405]
[1770557492300,1.5587531,2133.0,2132.1,1.17255288]
[1770557492471,0.37941227,2132.9,2132.1,1.17255288]
[1770557494405,0.37941227,2132.9,2131.9,1.17266288]
[1770557495175,0.37941227,2132.9,2131.9,2.09930693]
[1770557495611,0.37941227,2132.9,2132.0,0.92664405]
[1770557496382,0.37941227,2132.9,2132.1,1.17255288]
[1770557499715,0.37941227,2132.9,2132.0,1.17257602]
[1770557499888,2.54820765,2132.9,2132.0,1.17257602]
[1770557500088,0.33409678,2132.8,2132.0,1.17257602]
[1770557500289,0.33409678,2132.8,2131.9,1.17262388]
[1770557500489,0.99666181,2132.7,2131.7,1.17277219]
[1770557500684,0.32444275,2132.6,2132.0,1.17260479]
[1770557500892,0.32444275,2132.6,2131.9,4.69045755]
[1770557502217,0.32444275,2132.6,2132.1,0.0011]
[1770557505316,2.47889525,2132.6,2132.1,0.0011]
[1770557505522,1.31101079,2132.5,2132.1,0.0011]
[1770557505694,0.32509716,2132.4,2132.1,0.0011]
[1770557506014,0.32509716,2132.4,2131.9,0.0011]
[1770557506516,1.3072588,2132.4,2131.2,0.97739166]
[1770557506728,1.30742735,2132.3,2131.5,1.1728759]
[1770557506902,0.32519777,2132.2,2131.5,1.1728759]
[1770557507423,0.32519777,2132.2,2131.3,2.15038466]
[1770557507620,3.60219777,2132.2,2131.3,2.15038466]
[1770557507815,0.32437598,2132.1,2131.3,2.15038466]
[1770557509425,0.32437598,2132.1,2131.4,0.97739166]
[1770557511520,0.32437598,2132.1,2131.5,1.17288294]
[1770557512442,1.49693562,2132.1,2131.3,1.17296081]
[1770557512607,1.30587449,2132.0,2131.3,1.17296081]
[1770557512942,0.32364559,2131.9,2131.1,0.0011]
[1770557513113,1.30580723,2131.9,2131.1,1.17420156]
[1770557513315,0.32402223,2131.8,2131.1,1.17420156]
[1770557513520,0.32402223,2131.8,2131.1,0.0011]
[1770557514235,0.98216164,2131.7,2131.1,0.0011]
[1770557514543,1.49676172,2131.8,2130.9,0.0011]
[1770557514544,0.98216164,2131.5,2130.9,0.0011]
[1770557514707,0.33006237,2131.4,2130.4,2.15084507]
[1770557515054,0.98216164,2131.3,2130.4,4.6938142]
[1770557515210,0.32539398,2131.2,2130.5,1.17339351]
[1770557515529,0.32539398,2131.2,2130.5,1.17449351]
[1770557515831,1.30755562,2131.2,2130.5,0.0011]
[1770557516021,0.32363243,2131.1,2130.5,0.0011]
[1770557516221,0.32363243,2131.1,2130.5,0.97849166]
[1770557517238,0.32418855,2131.7,2130.5,0.97849166]
[1770557517531,4.58435019,2131.7,2130.5,0.97849166]
[1770557517741,0.32163408,2131.6,2130.6,2.15077005]
[1770557517920,5.75464412,2131.6,2130.6,1.17337839]
[1770557518112,0.32226042,2131.5,2130.6,1.17337839]
[1770557519671,0.98216164,2131.2,2130.0,0.0011]
[1770557519944,1.30303767,2131.1,2130.0,0.0011]
[1770557520141,0.32199953,2131.0,2130.0,0.0011]
[1770557521665,0.98216164,2130.9,2130.0,0.0011]
[1770557521827,1.30419302,2130.8,2130.0,0.0011]
[1770557522029,0.32310146,2130.7,2130.0,0.0011]
[1770557523745,4.26116164,2130.6,2130.0,0.0011]
[1770557523923,0.3251108,2130.5,2129.4,1.17403963]
[1770557524125,0.3251108,2130.5,2129.5,1.02198004]
[1770557524533,0.3251108,2130.5,2129.5,0.97739166]
[1770557526441,0.3251108,2130.5,2129.8,0.97739166]
[1770557527229,0.3251108,2130.5,2130.1,0.97739166]
[1770557527437,0.32104683,2131.3,2130.2,0.97739166]
[1770557527755,0.98216164,2131.2,2129.9,0.97739166]
[1770557527937,0.32066122,2131.1,2129.9,0.97739166]
[1770557528538,0.32066122,2131.1,2130.0,2.15110058]
[1770557528864,0.98216164,2131.0,2130.0,1.17370892]
[1770557529164,1.30320724,2130.9,2130.0,1.17370892]
[1770557529348,0.32088534,2130.8,2130.0,1.17370892]
[1770557529553,1.30304698,2130.8,2130.0,1.17370892]
[1770557529757,1.30290705,2130.7,2129.9,1.17372349]
[1770557529955,0.3207525,2130.6,2129.9,1.17372349]
[1770557530652,1.30291414,2130.6,2129.7,0.0011]
[1770557530965,1.30291414,2130.6,2129.7,0.97849166]
[1770557530966,0.3207525,2130.6,2129.7,0.97849166]
[1770557532753,0.3207525,2130.6,2129.8,1.17381913]
[1770557533332,0.3207525,2130.6,2129.8,2.15121079]
[1770557533662,0.3207525,2130.6,2129.9,0.97739166]
[1770557533858,0.3207525,2130.6,2130.1,0.97739166]
[1770557534065,0.98216164,2131.2,2130.1,0.97739166]
[1770557534266,0.32081072,2131.1,2130.1,0.97739166]
[1770557534846,0.32081072,2131.1,2130.2,1.17359872]
[1770557535356,0.32081072,2131.1,2130.3,1.14154375]
[1770557537569,0.32081072,2131.1,2130.4,1.17348854]
[1770557538067,0.32081072,2131.1,2130.5,0.04162111]
[1770557538261,0.32081072,2131.1,2130.4,1.21510965]
[1770557539139,1.15875219,2131.4,2130.4,1.21510965]
[1770557539573,0.001,2130.9,2130.4,1.21510965]
[1770557541357,0.001,2130.9,2130.4,1.17348854]
[1770557541562,0.001,2130.9,2130.3,4.69395418]
[1770557541769,1.15975219,2130.9,2130.3,4.69395418]
[1770557542963,0.001,2130.9,2130.3,4.69395418]
[1770557543167,0.001,2130.9,2130.4,0.0416172]
[1770557543363,0.001,2130.9,2130.3,4.69395418]
[1770557545875,0.001,2130.9,2130.4,0.04161329]
[1770557546369,0.001,2130.9,2130.4,1.18315704]
[1770557547143,0.001,2130.9,2130.4,0.04161329]
[1770557547346,0.001,2130.9,2130.3,4.69395418]
[1770557547789,0.001,2130.9,2130.4,0.04160937]
[1770557548074,0.001,2130.9,2130.5,1.17343346]
[1770557549299,0.001,2130.9,2130.6,0.04160546]
[1770557549869,0.001,2130.9,2130.7,1.17332332]
[1770557554488,0.32057859,2131.5,2130.7,2.3564647]
[1770557555575,0.32057859,2131.5,2130.7,1.21492095]
[1770557555775,0.32057859,2131.5,2130.8,1.14154375]
[1770557555977,0.32057859,2131.5,2130.7,1.21492095]
[1770557555978,0.32057859,2131.5,2130.9,1.18313747]
[1770557556262,0.001,2131.9,2131.0,1.14154375]
[1770557556464,0.001,2131.9,2131.1,1.17310309]
[1770557556771,0.001,2131.9,2131.2,1.14154375]
[1770557557083,0.001,2131.9,2131.1,4.45210309]
[1770557557289,1.15975219,2131.9,2131.1,4.45210309]
[1770557558382,0.001,2131.9,2131.1,5.59364684]
[1770557559094,0.001,2131.9,2131.2,0.04692191]
[1770557560991,0.001,2131.9,2131.3,1.172993]
[1770557562594,0.001,2131.9,2131.4,0.0469175]
[1770557563598,0.001,2131.9,2131.5,1.17288294]
[1770557564173,0.001,2131.7,2131.5,1.17288294]
[1770557565396,0.001,2131.7,2131.3,0.04691972]
[1770557565397,1.18272021,2131.7,2131.3,0.04691972]
[1770557565599,1.18272021,2131.7,2131.2,1.1730391]
[1770557565796,1.18272021,2131.7,2131.0,4.69251508]
[1770557565997,1.18272021,2131.7,2131.2,1.17304425]
[1770557567010,1.18272021,2131.7,2131.3,1.17299169]
[1770557567580,1.18272021,2131.7,2130.9,0.0011]
[1770557568208,0.001,2131.7,2130.9,1.23435122]
[1770557569601,0.001,2131.7,2131.0,2.40640936]
[1770557569798,0.001,2131.7,2131.1,1.23325122]
[1770557570309,1.18172021,2132.1,2131.1,1.23325122]
[1770557571705,1.18172021,2132.1,2131.2,1.17304804]
[1770557576088,1.18172021,2132.1,2131.3,0.0011]
[1770557576497,0.001,2131.9,2131.3,0.0011]
[1770557577219,0.001,2131.9,2131.3,1.23435122]
[1770557578616,0.001,2131.9,2131.4,1.17293797]
[1770557579512,1.18172021,2132.2,2131.4,1.17293797]
[1770557580720,0.32149367,2132.3,2131.3,1.23435122]
[1770557581033,1.18172021,2132.2,2131.3,0.0011]
[1770557582217,0.32149367,2132.3,2131.3,1.23435122]
[1770557582610,0.32149367,2132.3,2131.4,1.17293797]
[1770557582818,0.32149367,2132.3,2131.5,1.23325122]
[1770557585020,0.5,2132.2,2131.6,1.17282792]
[1770557586202,1.18172021,2132.5,2131.6,1.17282792]
[1770557588420,0.001,2132.0,2131.6,1.17282792]
[1770557589124,0.001,2132.0,2131.6,2.40607914]
[1770557589316,1.18172021,2132.6,2131.6,2.40607914]
[1770557590727,1.18172021,2132.6,2131.7,1.23325122]
[1770557591811,1.18172021,2132.6,2131.8,1.17271789]
[1770557592735,1.18172021,2132.5,2131.8,1.17271789]
[1770557593525,1.18172021,2132.5,2131.7,1.17273938]
[1770557594037,1.29443328,2132.2,2131.3,0.0011]
[1770557596456,1.31648326,2132.0,2131.3,0.0011]
[1770557596639,1.27189488,2131.8,2131.3,0.0011]
[1770557599449,3.278,2131.9,2131.3,0.0011]
[1770557600255,3.278,2131.9,2131.5,0.0011]
[1770557602954,1.27189488,2131.8,2131.5,0.0011]
[1770557604758,1.27189488,2131.8,2131.3,0.0011]
[1770557607564,4.54989488,2131.9,2131.3,0.0011]
[1770557608370,1.27189488,2131.8,2131.3,0.0011]
[1770557610548,3.278,2131.9,2131.3,0.0011]
[1770557611147,0.001,2132.0,2131.3,0.0011]
[1770557612773,0.001,2132.0,2131.5,0.0011]
[1770557612948,0.001,2131.8,2131.5,0.0011]
[1770557615349,1.27289488,2131.8,2131.5,0.0011]
[1770557618087,0.001,2132.0,2131.5,0.0011]
[1770557623584,0.001,2132.0,2131.5,0.00029946]
[1770557624382,0.001,2132.0,2131.7,0.0011]
[1770557624584,0.001,2131.8,2131.7,0.0011]
[1770557634381,1.21692212,2132.5,2131.7,1.37002065]
[1770557634382,1.22462837,2132.5,2131.7,1.37002065]
[1770557634689,1.22462837,2132.5,2131.7,0.0011]
[1770557635987,1.22462837,2132.5,2131.7,1.37002065]
[1770557636192,0.001,2132.3,2131.7,1.37002065]
[1770557636688,1.2398376,2132.3,2131.7,0.0011]
[1770557637981,1.2398376,2132.3,2131.7,1.1738729]
[1770557639876,0.001,2132.3,2131.8,1.36892065]
[1770557640087,0.001,2132.3,2132.0,1.36892065]
[1770557642097,0.001,2132.3,2132.1,2.54147353]
[1770557642397,0.001,2132.3,2132.2,1.36892065]
[1770557644894,0.001,2132.3,2132.2,2.54141853]
[1770557646405,0.001,2132.3,2132.2,1.17249788]
[1770557646981,0.001,2132.3,2132.1,4.6901562]
[1770557647990,0.001,2132.3,2132.1,6.05907685]
[1770557650310,0.001,2132.7,2132.3,1.36892065]
[1770557650683,0.001,2132.7,2132.0,1.36892065]
[1770557651012,1.26218546,2132.7,2131.9,1.17255288]
[1770557651492,1.26218546,2132.7,2131.9,2.54147353]
[1770557652086,1.26118546,2132.6,2131.9,1.17255288]
[1770557652416,1.26118546,2132.6,2131.7,1.37002065]
[1770557653611,1.26118546,2132.5,2131.7,0.0011]
[1770557654413,1.35961804,2132.4,2131.7,0.0011]
[1770557657427,1.37623558,2132.3,2131.7,0.0011]
[1770557657722,2.55488025,2132.7,2131.7,1.35105104]
[1770557658527,1.38700094,2132.6,2131.8,1.17271789]
[1770557659028,1.38700094,2132.6,2131.9,0.0011]
[1770557659216,0.001,2132.2,2131.9,0.0011]
[1770557659534,1.39335267,2132.2,2131.9,0.0011]
[1770557660544,2.56586043,2132.2,2131.9,0.0011]
[1770557660736,0.001,2132.2,2131.9,0.0011]
[1770557660908,0.001,2132.2,2131.9,1.35105104]
[1770557662208,0.001,2132.2,2131.9,0.0011]
[1770557663840,0.001,2132.2,2131.6,0.0011]
[1770557664011,0.001,2132.2,2131.5,1.17285752]
[1770557664330,0.001,2132.2,2131.4,1.17289802]
[1770557664821,0.001,2132.2,2131.3,0.0011]
[1770557665835,1.40397083,2132.1,2131.3,0.0011]
[1770557667432,1.40397083,2132.0,2131.3,0.0011]
[1770557667910,2.57752359,2132.2,2131.3,1.35105104]
[1770557669327,1.40397083,2132.1,2131.3,1.35105104]
[1770557669841,1.40397083,2132.0,2131.3,0.0011]
[1770557671242,2.5775102,2132.2,2131.5,0.0011]
[1770557671616,0.001,2132.1,2131.5,0.0011]
[1770557672438,1.40497083,2132.1,2131.5,0.0011]
[1770557674756,2.57752626,2132.1,2131.5,0.0011]
[1770557675332,1.40497083,2132.1,2131.5,0.0011]
[1770557675645,0.001,2132.1,2131.5,0.0011]
[1770557676046,2.57753021,2132.1,2131.5,0.0011]
[1770557676346,1.40497083,2132.1,2131.5,0.0011]
[1770557678541,2.57752619,2132.1,2131.5,0.0011]
[1770557679442,1.40497083,2132.1,2131.5,0.0011]
[1770557680032,2.57753134,2132.1,2131.5,0.0011]
[1770557680230,1.40397083,2132.0,2131.5,0.0011]
[1770557680642,0.001,2132.1,2131.5,0.0011]
[1770557680946,1.40497083,2132.1,2131.5,0.0011]
[1770557682348,0.001,2132.1,2131.5,1.35105104]
[1770557682538,1.40397083,2132.0,2131.5,0.0011]
[1770557683254,1.40397083,2132.0,2131.7,0.0011]
[1770557683550,0.001,2131.9,2131.7,0.0011]
[1770557684053,1.40497083,2131.9,2131.7,0.0011]
[1770557684269,0.001,2131.9,2131.7,0.0011]
[1770557685453,0.001,2131.9,2131.7,1.40551483]
[1770557687463,0.001,2131.9,2131.7,2.57827792]
[1770557688266,0.001,2131.9,2131.7,1.17386309]
[1770557689959,0.001,2131.9,2131.7,0.0011]
[1770557690176,0.001,2131.9,2131.7,1.40551483]
[1770557692862,0.001,2132.2,2132.0,1.40441483]
[1770557694057,0.001,2132.7,2132.1,1.40441483]
[1770557694965,1.58128982,2132.6,2131.7,0.01282772]
[1770557695169,1.58128982,2132.0,2131.3,0.0011]
[1770557695467,1.53670144,2131.7,2131.0,0.0011]
[1770557695665,1.53670144,2131.7,2131.0,0.0022]
[1770557696186,1.53670144,2131.7,2130.8,0.0011]
[1770557697372,1.17282792,2131.6,2130.8,0.0011]
[1770557700838,1.53670144,2131.5,2130.8,0.0011]
[1770557701884,1.17282792,2131.6,2130.8,0.0011]
[1770557701885,1.53670144,2131.3,2130.8,0.0011]
[1770557702246,1.53670144,2131.1,2130.8,0.0011]
[1770557702445,1.53670144,2131.1,2130.6,0.0011]
[1770557702874,1.17310309,2131.1,2130.6,0.0011]
[1770557703245,2.70980453,2131.1,2130.6,0.0011]
[1770557703446,1.53670144,2131.0,2130.6,0.0011]
[1770557703869,1.53670144,2131.0,2130.4,0.0011]
[1770557704250,1.53670144,2130.8,2130.4,0.0011]
[1770557704469,1.53670144,2130.8,2129.8,2.57933088]
[1770557704672,2.70980453,2131.1,2130.0,1.40441483]
[1770557704852,0.1024,2131.6,2130.5,1.40441483]
[1770557705056,3.279,2131.5,2130.5,1.40441483]
[1770557706884,3.279,2131.5,2130.7,1.40441483]
[1770557707199,4.45188421,2131.5,2130.7,1.40441483]
[1770557707500,4.45188421,2131.5,2130.7,1.40551483]
[1770557707861,5.98858565,2131.5,2130.7,0.0011]
[1770557708287,4.45188421,2131.5,2130.7,1.40551483]
[1770557709268,5.98858565,2131.5,2130.7,2.57882427]
[1770557709458,4.45188421,2131.5,2130.7,2.57882427]
[1770557709665,3.279,2131.5,2130.8,1.40441483]
[1770557710361,5.9885953,2131.5,2130.7,0.0011]
[1770557710592,5.9885953,2131.5,2130.5,0.0011]
[1770557710593,1.63910144,2131.3,2130.5,0.0011]
[1770557711170,1.17304804,2131.2,2130.4,1.15008741]
[1770557711592,1.17304804,2131.2,2130.4,2.55450224]
[1770557711769,0.001,2131.9,2130.5,1.44900321]
[1770557711963,1.17367448,2131.9,2131.0,1.40441483]
[1770557713117,0.001,2131.9,2131.0,1.40441483]
[1770557713296,0.001,2131.9,2131.2,1.40441483]
[1770557715478,0.001,2131.9,2131.4,1.56426551]
[1770557717673,0.001,2131.9,2131.6,1.56426551]
[1770557718787,0.001,2131.9,2131.3,1.17294018]
[1770557719117,0.001,2131.9,2131.4,1.17292983]
[1770557719407,0.001,2132.5,2131.6,1.56426551]
[1770557719605,0.001,2132.5,2131.7,2.73703841]
[1770557719901,0.001,2132.5,2131.8,1.56426551]
[1770557722983,0.001,2132.5,2131.9,1.17266288]
[1770557723695,0.001,2132.5,2131.8,1.1726821]
[1770557724287,0.001,2132.5,2131.8,1.17271679]
[1770557725501,0.001,2132.5,2131.7,1.17274163]
[1770557725676,0.001,2132.5,2131.7,1.17276729]
[1770557727108,1.58314753,2132.5,2131.6,1.17278811]
[1770557727307,1.58314753,2132.5,2131.7,1.17276971]
[1770557728006,1.17238791,2132.4,2131.6,1.17282792]
[1770557728209,1.17238791,2132.4,2131.5,6.25571667]
[1770557728210,1.17238791,2132.4,2131.5,2.73710842]
[1770557728513,1.58214753,2132.3,2131.5,1.17284291]
[1770557728687,1.58214753,2132.3,2131.3,1.17298815]
[1770557729082,1.58214753,2132.3,2131.4,1.17293132]